[Event "MČR v rapid šachu družstev 2019"]
[Site "Teplice, Czech Republic"]
[Date "2019.09.15"]
[Round "4.16"]
[White "Loskot, Petr"]
[Black "Benes, Petr"]
[Result "1/2-1/2"]
[TimeControl "15 min. + 5s"]
[WhiteElo "2065"]
[BlackElo "2147"]

1. e4 {[%clk 00:15:06]} {[%emt 00:00:02]} Nc6 {[%clk 00:15:05]} {[%emt
00:00:06]} 2. Nf3 {[%clk 00:15:03]} {[%emt 00:00:09]} d6 {[%clk 00:14:58]}
{[%emt 00:00:11]} 3. d4 {[%clk 00:14:45]} {[%emt 00:00:22]} Nf6 {[%clk
00:14:57]} {[%emt 00:00:06]} 4. Nc3 {[%clk 00:14:41]} {[%emt 00:00:09]} Bg4
{[%clk 00:14:58]} {[%emt 00:00:04]} 5. Be2 {[%clk 00:14:43]} {[%emt 00:00:03]}
a6 {[%clk 00:14:50]} {[%emt 00:00:14]} 6. O-O {[%clk 00:14:41]} {[%emt
00:00:07]} e5 {[%clk 00:14:21]} {[%emt 00:00:34]} 7. d5 {[%clk 00:13:33]}
{[%emt 00:01:13]} Nb8 {[%clk 00:13:52]} {[%emt 00:00:34]} 8. Be3 {[%clk
00:13:35]} {[%emt 00:00:03]} Nbd7 {[%clk 00:13:23]} {[%emt 00:00:34]} 9. Nd2
{[%clk 00:12:53]} {[%emt 00:00:48]} Bxe2 {[%clk 00:13:12]} {[%emt 00:00:16]} 10.
Qxe2 {[%clk 00:12:56]} {[%emt 00:00:02]} Be7 {[%clk 00:13:01]} {[%emt
00:00:16]} 11. b4 {[%clk 00:12:02]} {[%emt 00:00:59]} O-O {[%clk 00:12:54]}
{[%emt 00:00:12]} 12. a4 {[%clk 00:11:58]} {[%emt 00:00:08]} c6 {[%clk
00:11:50]} {[%emt 00:01:10]} 13. dxc6 {[%clk 00:09:40]} {[%emt 00:02:24]} bxc6
{[%clk 00:11:53]} {[%emt 00:00:01]} 14. b5 {[%clk 00:07:55]} {[%emt 00:01:50]}
axb5 {[%clk 00:11:06]} {[%emt 00:00:52]} 15. axb5 {[%clk 00:07:58]} {[%emt
00:00:01]} cxb5 {[%clk 00:10:34]} {[%emt 00:00:38]} 16. Nxb5 {[%clk 00:07:49]}
{[%emt 00:00:14]} Rxa1 {[%clk 00:09:54]} {[%emt 00:00:45]} 17. Rxa1 {[%clk
00:07:53]} {[%emt 00:00:01]} d5 {[%clk 00:09:39]} {[%emt 00:00:20]} 18. exd5
{[%clk 00:06:52]} {[%emt 00:01:05]} Nxd5 {[%clk 00:09:41]} {[%emt 00:00:03]} 19.
Ba7 {[%clk 00:06:21]} {[%emt 00:00:36]} Re8 {[%clk 00:07:31]} {[%emt 00:02:15]}
20. c4 {[%clk 00:06:03]} {[%emt 00:00:24]} Nb4 {[%clk 00:07:31]} {[%emt
00:00:04]} 21. Rd1 {[%clk 00:05:34]} {[%emt 00:00:33]} Nc6 {[%clk 00:06:03]}
{[%emt 00:01:34]} 22. Be3 {[%clk 00:05:25]} {[%emt 00:00:15]} Qb8 {[%clk
00:03:37]} {[%emt 00:02:30]} 23. Qf3 {[%clk 00:05:06]} {[%emt 00:00:23]} Na5
{[%clk 00:02:52]} {[%emt 00:00:51]} 24. Ba7 {[%clk 00:03:56]} {[%emt 00:01:15]}
Qc8 {[%clk 00:02:55]} {[%emt 00:00:02]} 25. Rc1 {[%clk 00:03:34]} {[%emt
00:00:28]} Nc5 {[%clk 00:02:44]} {[%emt 00:00:16]} 26. Bb6 {[%clk 00:03:16]}
{[%emt 00:00:22]} Nc6 {[%clk 00:02:09]} {[%emt 00:00:39]} 27. Ne4 {[%clk
00:02:36]} {[%emt 00:00:46]} Nxe4 {[%clk 00:01:35]} {[%emt 00:00:39]} 28. Qxe4
{[%clk 00:02:39]} {[%emt 00:00:02]} Bf8 {[%clk 00:01:25]} {[%emt 00:00:15]} 29.
Nc7 {[%emt 00:00:45]} Qb7 {[%emt 00:00:43]} 30. Nxe8 {[%emt 00:00:13]} Qxb6
{[%emt 00:00:01]} 31. Qg4 {[%emt 00:00:22]} Qd8 {[%emt 00:00:04]} 32. Qe4
{[%emt 00:00:11]} Qb6 33. Qd5 {[%emt 00:00:11]} Nb4 {[%emt 00:00:06]} 34. Qd7
{[%emt 00:00:08]} Qd4 {[%emt 00:00:25]} 35. Qxd4 {[%emt 00:00:11]} exd4 36. Nc7
{[%emt 00:00:06]} d3 {[%emt 00:00:05]} 37. Nd5 {[%emt 00:00:03]} Nxd5 38. cxd5
d2 39. Rd1 Bb4 1/2-1/2

[Event "MČR v rapid šachu družstev 2019"]
[Site "Teplice, Czech Republic"]
[Date "2019.09.15"]
[Round "4.17"]
[White "Skypala, Ondrej"]
[Black "Krejci, Jan"]
[Result "0-1"]
[TimeControl "15 min. + 5s"]
[WhiteElo "2053"]
[BlackElo "2496"]

1. c4 {[%clk 00:15:06]} {[%emt 00:00:02]} e6 {[%clk 00:15:09]} {[%emt
00:00:02]} 2. Nc3 {[%clk 00:15:10]} {[%emt 00:00:01]} d5 {[%clk 00:15:12]}
{[%emt 00:00:02]} 3. g3 {[%clk 00:15:12]} {[%emt 00:00:03]} d4 {[%clk
00:15:07]} {[%emt 00:00:11]} 4. Ne4 {[%clk 00:15:15]} {[%emt 00:00:01]} f5
{[%clk 00:14:46]} {[%emt 00:00:25]} 5. e3 {[%clk 00:14:36]} {[%emt 00:00:45]}
fxe4 {[%clk 00:14:39]} {[%emt 00:00:13]} 6. Qh5+ {[%clk 00:14:39]} {[%emt
00:00:01]} g6 {[%clk 00:14:42]} {[%emt 00:00:03]} 7. Qe5 {[%clk 00:14:37]}
{[%emt 00:00:06]} Nf6 {[%clk 00:14:30]} {[%emt 00:00:17]} 8. exd4 {[%clk
00:14:40]} {[%emt 00:00:02]} Nc6 {[%clk 00:14:29]} {[%emt 00:00:06]} 9. Qb5
{[%clk 00:14:32]} {[%emt 00:00:13]} Qxd4 {[%clk 00:14:10]} {[%emt 00:00:24]} 10.
Ne2 {[%clk 00:14:35]} {[%emt 00:00:02]} Qc5 {[%clk 00:13:59]} {[%emt 00:00:16]}
11. Qa4 {[%clk 00:14:37]} {[%emt 00:00:03]} Ng4 {[%clk 00:13:49]} {[%emt
00:00:15]} 12. Bh3 {[%clk 00:14:40]} {[%emt 00:00:02]} Nxf2 {[%clk 00:13:43]}
{[%emt 00:00:11]} 13. b4 {[%clk 00:14:34]} {[%emt 00:00:11]} Nd3+ {[%clk
00:13:31]} {[%emt 00:00:17]} 14. Kd1 {[%clk 00:14:26]} {[%emt 00:00:13]} Qxb4
{[%clk 00:13:33]} {[%emt 00:00:03]} 15. Qxb4 {[%clk 00:14:24]} {[%emt
00:00:08]} Bxb4 {[%clk 00:13:29]} {[%emt 00:00:08]} 16. Rf1 {[%clk 00:14:27]}
{[%emt 00:00:02]} e5 {[%clk 00:13:18]} {[%emt 00:00:16]} 17. Bxc8 {[%clk
00:14:24]} {[%emt 00:00:08]} Rxc8 {[%clk 00:13:22]} {[%emt 00:00:01]} 18. a3
{[%clk 00:14:26]} {[%emt 00:00:03]} Ba5 {[%clk 00:13:23]} {[%emt 00:00:04]} 19.
Rb1 {[%clk 00:14:30]} {[%emt 00:00:02]} Rd8 {[%clk 00:13:15]} {[%emt 00:00:12]}
20. Rxb7 {[%clk 00:14:24]} {[%emt 00:00:11]} Bb6 {[%clk 00:13:13]} {[%emt
00:00:08]} 21. Nc3 {[%clk 00:14:05]} {[%emt 00:00:23]} Nc5 {[%clk 00:13:04]}
{[%emt 00:00:14]} 22. Ke1 {[%emt 00:00:25]} 0-1

[Event "MČR v rapid šachu družstev 2019"]
[Site "Teplice, Czech Republic"]
[Date "2019.09.15"]
[Round "4.18"]
[White "Sorm, Daniel"]
[Black "Kucera, Tomas"]
[Result "1-0"]
[TimeControl "15 min. + 5s"]
[WhiteElo "2313"]
[BlackElo "1993"]

1. d4 {[%clk 00:15:09]} {[%emt 00:00:01]} Nf6 {[%clk 00:15:09]} {[%emt
00:00:01]} 2. c4 {[%clk 00:15:12]} {[%emt 00:00:02]} d6 {[%clk 00:15:13]}
{[%emt 00:00:01]} 3. Nc3 {[%clk 00:15:15]} {[%emt 00:00:01]} g6 {[%clk
00:15:16]} {[%emt 00:00:02]} 4. e4 {[%clk 00:15:19]} {[%emt 00:00:02]} Bg7
{[%clk 00:15:19]} 5. f4 {[%clk 00:15:20]} {[%emt 00:00:04]} O-O {[%clk
00:15:22]} {[%emt 00:00:03]} 6. Nf3 {[%clk 00:15:25]} Na6 {[%clk 00:15:21]}
{[%emt 00:00:06]} 7. Bd3 {[%clk 00:15:12]} {[%emt 00:00:18]} e5 {[%clk
00:13:38]} {[%emt 00:01:48]} 8. fxe5 {[%clk 00:15:14]} {[%emt 00:00:02]} dxe5
{[%clk 00:13:42]} {[%emt 00:00:01]} 9. d5 {[%clk 00:15:18]} Nc5 {[%clk
00:13:40]} {[%emt 00:00:07]} 10. Bc2 {[%clk 00:15:15]} {[%emt 00:00:08]} Nh5
{[%clk 00:13:09]} {[%emt 00:00:36]} 11. O-O {[%clk 00:14:49]} {[%emt 00:00:31]}
Nf4 {[%clk 00:11:37]} {[%emt 00:01:38]} 12. b4 {[%clk 00:12:57]} {[%emt
00:01:57]} Na6 {[%clk 00:10:00]} {[%emt 00:01:41]} 13. a3 {[%clk 00:12:55]}
{[%emt 00:00:07]} c5 {[%clk 00:10:00]} {[%emt 00:00:06]} 14. Rb1 {[%clk
00:11:51]} {[%emt 00:01:09]} Bd7 {[%clk 00:08:17]} {[%emt 00:01:48]} 15. Be3
{[%clk 00:11:23]} {[%emt 00:00:32]} Rc8 {[%clk 00:07:49]} {[%emt 00:00:33]} 16.
b5 {[%clk 00:10:04]} {[%emt 00:01:24]} Nb8 {[%clk 00:07:37]} {[%emt 00:00:18]}
17. g3 {[%clk 00:08:43]} {[%emt 00:01:26]} Nh5 {[%clk 00:06:28]} {[%emt
00:01:14]} 18. Qd2 {[%clk 00:08:24]} {[%emt 00:00:23]} Bh3 {[%clk 00:06:02]}
{[%emt 00:00:31]} 19. Rfe1 {[%clk 00:08:03]} {[%emt 00:00:26]} f5 {[%clk
00:05:56]} {[%emt 00:00:12]} 20. exf5 {[%clk 00:07:47]} {[%emt 00:00:20]} gxf5
{[%clk 00:05:30]} {[%emt 00:00:32]} 21. Bh6 {[%clk 00:07:42]} {[%emt 00:00:10]}
e4 {[%clk 00:03:53]} {[%emt 00:01:42]} 22. Bxg7 {[%clk 00:07:35]} {[%emt
00:00:12]} Nxg7 {[%clk 00:03:55]} {[%emt 00:00:02]} 23. Ng5 {[%clk 00:07:04]}
{[%emt 00:00:36]} Bg4 {[%clk 00:03:58]} {[%emt 00:00:02]} 24. Qf4 {[%clk
00:05:56]} {[%emt 00:01:14]} Qf6 {[%clk 00:03:45]} {[%emt 00:00:17]} 25. Ncxe4
{[%clk 00:03:52]} {[%emt 00:02:09]} fxe4 {[%clk 00:02:44]} {[%emt 00:01:07]} 26.
Qxg4 {[%clk 00:03:50]} {[%emt 00:00:07]} Qf2+ {[%clk 00:02:17]} {[%emt
00:00:31]} 27. Kh1 {[%clk 00:03:54]} {[%emt 00:00:01]} Qxc2 {[%clk 00:02:21]}
{[%emt 00:00:02]} 28. Ne6 {[%clk 00:03:45]} {[%emt 00:00:14]} Qc3 {[%clk
00:02:02]} {[%emt 00:00:29]} 29. Nxf8 {[%clk 00:02:33]} {[%emt 00:01:22]} Rxf8
{[%clk 00:02:06]} 30. Rxe4 {[%clk 00:02:15]} {[%emt 00:00:22]} Qd3 {[%clk
00:01:34]} {[%emt 00:00:37]} 31. Rbe1 {[%clk 00:02:05]} {[%emt 00:00:15]} Rf1+
{[%clk 00:01:29]} {[%emt 00:00:10]} 32. Kg2 {[%clk 00:02:09]} {[%emt 00:00:01]}
Rxe1 {[%clk 00:01:23]} {[%emt 00:00:12]} 33. Rxe1 {[%clk 00:01:30]} {[%emt
00:00:43]} Qd4 {[%clk 00:00:22]} {[%emt 00:01:06]} 34. Qxd4 {[%clk 00:00:39]}
{[%emt 00:00:56]} cxd4 {[%clk 00:00:26]} {[%emt 00:00:02]} 35. Re7 {[%clk
00:00:43]} Nf5 {[%clk 00:00:19]} {[%emt 00:00:13]} 36. Rxb7 {[%emt 00:00:18]}
d3 37. Kf2 {[%clk 00:00:29]} {[%emt 00:00:16]} 1-0

[Event "MČR v rapid šachu družstev 2019"]
[Site "Teplice, Czech Republic"]
[Date "2019.09.15"]
[Round "4.19"]
[White "Plasil, Petr"]
[Black "Strasil, Pavel"]
[Result "0-1"]
[TimeControl "15 min. + 5s"]
[WhiteElo "1967"]
[BlackElo "2097"]

1. d4 {[%clk 00:15:09]} {[%emt 00:00:01]} Nf6 {[%clk 00:15:08]} {[%emt
00:00:02]} 2. c4 {[%clk 00:15:12]} {[%emt 00:00:01]} e6 {[%clk 00:15:11]}
{[%emt 00:00:03]} 3. Nf3 {[%clk 00:15:16]} {[%emt 00:00:01]} d5 {[%clk
00:15:15]} {[%emt 00:00:02]} 4. Nc3 {[%clk 00:15:19]} {[%emt 00:00:02]} Be7
{[%clk 00:15:17]} {[%emt 00:00:02]} 5. cxd5 {[%clk 00:15:19]} {[%emt 00:00:05]}
exd5 {[%clk 00:15:19]} {[%emt 00:00:03]} 6. Bg5 {[%clk 00:15:21]} {[%emt
00:00:03]} c6 {[%clk 00:15:18]} {[%emt 00:00:07]} 7. e3 {[%clk 00:15:24]}
{[%emt 00:00:01]} Bf5 {[%clk 00:15:21]} 8. Bd3 {[%clk 00:15:28]} {[%emt
00:00:02]} Bxd3 {[%clk 00:15:25]} {[%emt 00:00:02]} 9. Qxd3 {[%clk 00:15:32]}
{[%emt 00:00:01]} Nbd7 {[%clk 00:15:27]} {[%emt 00:00:03]} 10. O-O {[%clk
00:15:30]} {[%emt 00:00:06]} O-O {[%clk 00:15:31]} {[%emt 00:00:01]} 11. a3
{[%clk 00:15:22]} {[%emt 00:00:13]} a5 {[%clk 00:15:32]} {[%emt 00:00:05]} 12.
Rab1 {[%clk 00:14:25]} {[%emt 00:01:02]} Re8 {[%clk 00:15:31]} {[%emt
00:00:06]} 13. b4 {[%clk 00:14:14]} {[%emt 00:00:16]} axb4 {[%clk 00:15:30]}
{[%emt 00:00:05]} 14. axb4 {[%clk 00:14:18]} {[%emt 00:00:01]} Ne4 {[%clk
00:15:32]} {[%emt 00:00:03]} 15. Bxe7 {[%clk 00:14:08]} {[%emt 00:00:16]} Qxe7
{[%clk 00:15:34]} {[%emt 00:00:03]} 16. b5 {[%clk 00:13:42]} {[%emt 00:00:31]}
Ra3 {[%clk 00:15:32]} {[%emt 00:00:07]} 17. Rfc1 {[%clk 00:13:45]} {[%emt
00:00:02]} Qd6 {[%clk 00:15:18]} {[%emt 00:00:18]} 18. Nd2 {[%clk 00:13:06]}
{[%emt 00:00:45]} Nxd2 {[%clk 00:15:11]} {[%emt 00:00:11]} 19. Qxd2 {[%clk
00:13:08]} {[%emt 00:00:02]} Nb6 {[%clk 00:14:06]} {[%emt 00:01:10]} 20. bxc6
{[%clk 00:11:33]} {[%emt 00:01:41]} Nc4 {[%clk 00:14:10]} 21. Qc2 {[%clk
00:11:34]} {[%emt 00:00:04]} bxc6 {[%clk 00:14:11]} {[%emt 00:00:05]} 22. Rb7
{[%clk 00:08:44]} {[%emt 00:02:54]} Qg6 {[%clk 00:12:53]} {[%emt 00:01:22]} 23.
Qxg6 {[%clk 00:07:47]} {[%emt 00:01:03]} hxg6 {[%clk 00:12:56]} {[%emt
00:00:02]} 24. Kf1 {[%clk 00:06:52]} {[%emt 00:01:00]} Rea8 {[%clk 00:12:55]}
{[%emt 00:00:06]} 25. Ke2 {[%clk 00:06:38]} {[%emt 00:00:19]} g5 {[%clk
00:12:41]} {[%emt 00:00:19]} 26. Kf3 {[%clk 00:05:48]} {[%emt 00:00:55]} R8a7
{[%clk 00:11:59]} {[%emt 00:00:47]} 27. Rxa7 {[%clk 00:05:46]} {[%emt
00:00:07]} Rxa7 {[%clk 00:12:03]} 28. Kg4 {[%clk 00:05:32]} {[%emt 00:00:19]}
f6 {[%clk 00:11:54]} {[%emt 00:00:14]} 29. Rb1 {[%clk 00:05:22]} {[%emt
00:00:15]} Kf7 {[%clk 00:11:51]} {[%emt 00:00:08]} 30. Rb4 {[%clk 00:04:38]}
{[%emt 00:00:49]} Kg6 {[%clk 00:11:30]} {[%emt 00:00:26]} 31. Kf3 {[%clk
00:04:31]} {[%emt 00:00:12]} Ra3 {[%clk 00:11:29]} {[%emt 00:00:06]} 32. Nb1
{[%clk 00:03:44]} {[%emt 00:00:52]} Ra1 {[%clk 00:11:03]} {[%emt 00:00:32]} 33.
Ke2 {[%clk 00:03:25]} {[%emt 00:00:23]} g4 {[%clk 00:11:02]} {[%emt 00:00:06]}
34. Kd3 {[%clk 00:03:02]} {[%emt 00:00:29]} Ra2 {[%clk 00:10:55]} {[%emt
00:00:11]} 35. e4 {[%clk 00:01:36]} {[%emt 00:01:31]} Rxf2 {[%clk 00:10:54]}
{[%emt 00:00:07]} 36. exd5 {[%clk 00:01:38]} {[%emt 00:00:02]} cxd5 {[%clk
00:10:58]} 37. Rb5 {[%clk 00:01:10]} {[%emt 00:00:33]} Rxg2 {[%clk 00:10:54]}
{[%emt 00:00:09]} 38. Rxd5 {[%clk 00:01:13]} {[%emt 00:00:02]} Nb2+ {[%clk
00:10:57]} {[%emt 00:00:02]} 39. Kc3 {[%clk 00:00:52]} {[%emt 00:00:26]} Rxh2
{[%clk 00:10:48]} {[%emt 00:00:14]} 40. Nd2 {[%clk 00:00:26]} {[%emt 00:00:31]}
Nd1+ {[%clk 00:10:30]} {[%emt 00:00:23]} 41. Kd3 {[%clk 00:00:30]} {[%emt
00:00:01]} Rxd2+ {[%clk 00:10:04]} {[%emt 00:00:32]} 42. Kxd2 {[%clk 00:00:34]}
g3 {[%clk 00:10:08]} 0-1

[Event "MČR v rapid šachu družstev 2019"]
[Site "Teplice, Czech Republic"]
[Date "2019.09.15"]
[Round "4.20"]
[White "Krejci, Jan"]
[Black "Ruzicka, Filip"]
[Result "1-0"]
[TimeControl "15 min. + 5s"]
[WhiteElo "2496"]
[BlackElo "1489"]

1. Nf3 {[%emt 00:08:33]} Nf6 {[%clk 00:15:00]} 2. c4 {[%clk 00:15:11]} {[%emt
00:00:01]} g6 {[%clk 00:15:04]} {[%emt 00:00:02]} 3. b3 {[%clk 00:15:14]}
{[%emt 00:00:01]} Bg7 {[%clk 00:15:07]} {[%emt 00:00:02]} 4. Bb2 {[%clk
00:15:19]} O-O {[%clk 00:15:09]} {[%emt 00:00:03]} 5. g3 {[%clk 00:15:23]} c6
{[%clk 00:14:58]} {[%emt 00:00:17]} 6. Bg2 {[%clk 00:15:23]} {[%emt 00:00:06]}
d5 {[%clk 00:15:02]} {[%emt 00:00:01]} 7. O-O {[%clk 00:15:21]} {[%emt
00:00:07]} Nbd7 {[%clk 00:14:55]} {[%emt 00:00:11]} 8. d4 {[%clk 00:15:24]}
{[%emt 00:00:03]} e6 {[%clk 00:14:53]} {[%emt 00:00:07]} 9. Nbd2 {[%clk
00:15:06]} {[%emt 00:00:22]} a6 {[%clk 00:14:16]} {[%emt 00:00:42]} 10. a4
{[%clk 00:15:01]} {[%emt 00:00:11]} a5 {[%clk 00:14:10]} {[%emt 00:00:11]} 11.
Rc1 {[%clk 00:14:40]} {[%emt 00:00:26]} Re8 {[%clk 00:13:19]} {[%emt 00:00:56]}
12. Re1 {[%clk 00:14:20]} {[%emt 00:00:25]} Qe7 {[%clk 00:12:47]} {[%emt
00:00:35]} 13. Qc2 {[%clk 00:14:04]} {[%emt 00:00:23]} h6 {[%clk 00:12:10]}
{[%emt 00:00:42]} 14. e3 {[%clk 00:13:58]} {[%emt 00:00:11]} Nh7 {[%clk
00:12:04]} {[%emt 00:00:10]} 15. e4 {[%clk 00:12:58]} {[%emt 00:01:06]} dxc4
{[%clk 00:11:39]} {[%emt 00:00:30]} 16. Nxc4 {[%clk 00:12:34]} {[%emt
00:00:29]} b5 {[%clk 00:11:08]} {[%emt 00:00:35]} 17. Ne3 {[%clk 00:09:38]}
{[%emt 00:03:01]} Bb7 {[%clk 00:10:24]} {[%emt 00:00:49]} 18. d5 {[%clk
00:09:38]} {[%emt 00:00:05]} cxd5 {[%clk 00:10:00]} {[%emt 00:00:29]} 19. Bxg7
{[%clk 00:09:15]} {[%emt 00:00:28]} Kxg7 {[%clk 00:09:57]} {[%emt 00:00:09]} 20.
exd5 {[%clk 00:09:18]} {[%emt 00:00:02]} bxa4 {[%clk 00:09:13]} {[%emt
00:00:48]} 21. dxe6 {[%clk 00:09:06]} {[%emt 00:00:18]} Qxe6 {[%clk 00:08:47]}
{[%emt 00:00:31]} 22. bxa4 {[%clk 00:08:50]} {[%emt 00:00:20]} Be4 {[%clk
00:08:30]} {[%emt 00:00:21]} 23. Qd2 {[%clk 00:08:23]} {[%emt 00:00:32]} Red8
{[%clk 00:06:45]} {[%emt 00:01:52]} 24. Nd4 {[%clk 00:08:00]} {[%emt 00:00:28]}
Qe8 {[%clk 00:06:48]} {[%emt 00:00:02]} 25. Nc6 {[%clk 00:06:44]} {[%emt
00:01:21]} Bxc6 {[%clk 00:06:37]} {[%emt 00:00:15]} 26. Bxc6 {[%clk 00:06:48]}
{[%emt 00:00:02]} Ra7 {[%clk 00:06:04]} {[%emt 00:00:37]} 27. Qd4+ {[%clk
00:06:46]} {[%emt 00:00:07]} Ne5 {[%clk 00:05:41]} {[%emt 00:00:28]} 28. Qxa7
{[%clk 00:06:47]} {[%emt 00:00:05]} Nxc6 {[%clk 00:05:44]} {[%emt 00:00:02]} 29.
Qc7 {[%clk 00:05:44]} {[%emt 00:01:06]} Rc8 {[%clk 00:05:34]} {[%emt 00:00:17]}
30. Qf4 {[%clk 00:05:13]} {[%emt 00:00:36]} Qd7 {[%clk 00:05:37]} {[%emt
00:00:02]} 31. Red1 {[%clk 00:05:00]} {[%emt 00:00:17]} Qe8 {[%clk 00:05:18]}
{[%emt 00:00:24]} 32. Ng4 {[%clk 00:04:32]} {[%emt 00:00:34]} h5 {[%clk
00:04:54]} {[%emt 00:00:29]} 33. Qh6+ {[%clk 00:04:14]} {[%emt 00:00:22]} Kg8
{[%clk 00:04:48]} {[%emt 00:00:11]} 34. Qxh7+ {[%clk 00:04:13]} {[%emt
00:00:07]} 1-0

[Event "MČR v rapid šachu družstev 2019"]
[Site "Teplice, Czech Republic"]
[Date "2019.09.15"]
[Round "4.21"]
[White "Liska, Jiri"]
[Black "Sprenar, Petr"]
[Result "1/2-1/2"]
[TimeControl "15 min. + 5s"]
[WhiteElo "2213"]
[BlackElo "2089"]

1. e4 {[%clk 00:15:08]} {[%emt 00:00:02]} e6 {[%clk 00:15:08]} {[%emt
00:00:03]} 2. d4 {[%clk 00:15:06]} {[%emt 00:00:06]} d5 {[%clk 00:15:12]} 3.
Nc3 {[%clk 00:15:06]} {[%emt 00:00:06]} Bb4 {[%clk 00:15:16]} {[%emt 00:00:02]}
4. e5 {[%clk 00:15:09]} {[%emt 00:00:02]} c5 {[%clk 00:15:19]} {[%emt
00:00:01]} 5. a3 {[%clk 00:15:11]} {[%emt 00:00:03]} Ba5 {[%clk 00:15:24]} 6.
b4 {[%clk 00:14:39]} {[%emt 00:00:37]} cxd4 {[%clk 00:15:27]} {[%emt 00:00:01]}
7. Nb5 {[%clk 00:14:42]} {[%emt 00:00:03]} Bc7 {[%clk 00:15:31]} {[%emt
00:00:01]} 8. f4 {[%clk 00:14:37]} {[%emt 00:00:09]} Bd7 {[%clk 00:15:35]}
{[%emt 00:00:02]} 9. Nxd4 {[%clk 00:14:39]} {[%emt 00:00:03]} Nc6 {[%clk
00:15:19]} {[%emt 00:00:21]} 10. Ngf3 {[%clk 00:14:06]} {[%emt 00:00:38]} Nge7
{[%clk 00:15:09]} {[%emt 00:00:15]} 11. Nb5 {[%clk 00:13:30]} {[%emt 00:00:41]}
Bb8 {[%clk 00:14:30]} {[%emt 00:00:44]} 12. Bd3 {[%clk 00:13:20]} {[%emt
00:00:14]} a6 {[%clk 00:14:33]} {[%emt 00:00:03]} 13. Nbd4 {[%clk 00:13:02]}
{[%emt 00:00:22]} Nxd4 {[%clk 00:14:11]} {[%emt 00:00:28]} 14. Nxd4 {[%clk
00:13:05]} {[%emt 00:00:02]} Ba7 {[%clk 00:14:15]} {[%emt 00:00:01]} 15. Be3
{[%clk 00:12:57]} {[%emt 00:00:13]} Bxd4 {[%clk 00:12:39]} {[%emt 00:01:41]} 16.
Bxd4 {[%clk 00:13:00]} {[%emt 00:00:02]} O-O {[%clk 00:11:56]} {[%emt
00:00:47]} 17. Qe2 {[%clk 00:11:07]} {[%emt 00:01:59]} Nf5 {[%clk 00:10:43]}
{[%emt 00:01:18]} 18. Bc5 {[%clk 00:11:00]} {[%emt 00:00:12]} Re8 {[%clk
00:10:30]} {[%emt 00:00:18]} 19. O-O {[%clk 00:10:51]} {[%emt 00:00:13]} Bc6
{[%clk 00:09:02]} {[%emt 00:01:33]} 1/2-1/2